fUST/lending_fUST_20250223
["ID","MTS","AMOUNT","RATE_DAILY","PERIOD"]
[354131215,1740267035534,-320.59,0.00013863,2]
[354131216,1740267035543,-500.0,0.00013863,2]
[354131217,1740267035553,-500.0,0.00013863,2]
[354131218,1740267035562,-500.0,0.00013863,2]
[354131219,1740267035571,-500.0,0.00013863,2]
[354131220,1740267035580,-299.64,0.00013863,2]
[354131221,1740267035590,-500.0,0.00013863,2]
[354131222,1740267035599,-229.23,0.00013863,2]
[354131223,1740267035608,-646.56,0.00013863,2]
[354131224,1740267035617,-1709.53,0.00013863,2]
[354131225,1740267035627,-500.0,0.00013863,2]
[354131226,1740267035636,-399.21,0.00013863,2]
[354131227,1740267035645,-634.26,0.00013863,2]
[354131228,1740267035654,-267.47,0.00013863,2]
[354131229,1740267035663,-500.0,0.00013863,2]
[354131230,1740267035672,-535.44,0.00013863,2]
[354131231,1740267035682,-361.48,0.00013863,2]
[354131232,1740267035692,-500.0,0.00013945,2]
[354131233,1740267035701,-500.0,0.00013945,2]
[354131234,1740267035710,-500.0,0.00013945,2]
[354131235,1740267035719,-500.0,0.00013945,2]
[354131236,1740267035729,-500.0,0.00013945,2]
[354131237,1740267035738,-1709.53,0.00013945,2]
[354131238,1740267035747,-419.21,0.00013945,2]
[354131239,1740267035756,-634.26,0.00013945,2]
[354131240,1740267035765,-500.0,0.00013945,2]
[354131241,1740267035775,-410.36214818,0.00013974,2]
[354131242,1740267035784,-550.67,0.00014027,2]
[354131243,1740267035793,-500.0,0.00014027,2]
[354131244,1740267035802,-500.0,0.00014027,2]
[354131245,1740267035812,-500.0,0.00014027,2]
[354131246,1740267035821,-420.12624476,0.00014027,2]
[354131247,1740267035831,-1709.53,0.00014027,2]
[354131248,1740267035841,-634.26,0.00014027,2]
[354131249,1740267035850,-500.0,0.00014027,2]
[354131250,1740267035860,-500.0,0.00014108,2]
[354131251,1740267035869,-500.0,0.00014109,2]
[354131252,1740267035878,-500.0,0.00014109,2]
[354131253,1740267035888,-500.0,0.00014109,2]
[354131254,1740267035897,-1709.53,0.00014109,2]
[354131255,1740267035906,-634.26,0.00014109,2]
[354131256,1740267035916,-500.0,0.00014109,2]
[354131257,1740267035925,-500.0,0.00014191,2]
[354131258,1740267035934,-453.62,0.00014191,2]
[354131259,1740267035944,-500.0,0.00014191,2]
[354131260,1740267035953,-1709.53,0.00014191,2]
[354131261,1740267035962,-634.26,0.00014191,2]
[354131262,1740267035971,-500.0,0.00014191,2]
[354131263,1740267035980,-1000.0,0.00014221,2]
[354131264,1740267035990,-500.0,0.00014232,2]
[354131265,1740267035999,-500.0,0.00014232,2]
[354131266,1740267036009,-255.23769833,0.00014232,2]
[354131267,1740267036018,-500.0,0.00014232,2]
[354131268,1740267036027,-187.77595319,0.00014232,2]
[354131269,1740267036037,-514.929447,0.00014232,2]
[354131270,1740267036046,-500.0,0.00014232,2]
[354131271,1740267036055,-500.0,0.00014232,2]
[354131272,1740267036064,-571.5,0.00014232,2]
[354131273,1740267036074,-500.0,0.00014232,2]
[354131274,1740267036083,-500.0,0.00014232,2]
[354131275,1740267036092,-500.0,0.00014232,2]
[354131276,1740267036101,-500.0,0.00014232,2]
[354131277,1740267036111,-500.0,0.00014232,2]
[354131278,1740267036120,-305.32567576,0.00014232,2]
[354131279,1740267036129,-500.0,0.00014232,2]
[354131280,1740267036139,-500.0,0.00014232,2]
[354131281,1740267036148,-500.0,0.00014232,2]
[354131282,1740267036158,-500.0,0.00014232,2]
[354131283,1740267036167,-500.0,0.00014232,2]
[354131284,1740267036177,-500.0,0.00014232,2]
[354131285,1740267036188,-500.0,0.00014232,2]
[354131286,1740267036198,-500.0,0.00014232,2]
[354131287,1740267036207,-500.0,0.00014232,2]
[354131288,1740267036217,-500.0,0.00014232,2]
[354131289,1740267036227,-500.0,0.00014232,2]
[354131290,1740267036236,-393.46000024,0.00014232,2]
[354131291,1740267036246,-500.0,0.00014232,2]
[354131292,1740267036256,-12924.89674434,0.00014233,2]
[354131293,1740267036266,-500.0,0.00014273,2]
[354131294,1740267036275,-500.0,0.00014273,2]
[354131295,1740267036284,-1709.53,0.00014273,2]
[354131296,1740267036293,-634.26,0.00014273,2]
[354131297,1740267036303,-233.3,0.00014273,2]
[354131298,1740267036312,-500.0,0.00014356,2]
[354131299,1740267036321,-500.0,0.00014356,2]
[354131300,1740267036331,-1709.53,0.00014356,2]
[354131301,1740267036341,-634.26,0.00014356,2]
[354131302,1740267036350,-276.58,0.00014438,2]
[354131303,1740267036359,-500.0,0.00014438,2]
[354131304,1740267036368,-1709.53,0.00014438,2]
[354131305,1740267036379,-634.26,0.00014438,2]
[354131306,1740267036388,-700.0,0.00014438,2]
[354131307,1740267036397,-500.0,0.0001452,2]
[354131308,1740267036406,-1709.53,0.0001452,2]
[354131309,1740267036415,-634.26,0.0001452,2]
[354131310,1740267036425,-500.0,0.00014602,2]
[354131311,1740267036434,-1709.53,0.00014602,2]
[354131312,1740267036444,-634.26,0.00014602,2]
[354131313,1740267036456,-500.0,0.00014684,2]
[354131314,1740267036466,-1709.53,0.00014684,2]
[354131315,1740267036475,-634.26,0.00014684,2]
[354131316,1740267036484,-313.62,0.00014767,2]
[354131317,1740267036494,-1709.53,0.00014767,2]
[354131318,1740267036503,-634.26,0.00014767,2]
[354131319,1740267036512,-1709.53,0.00014849,2]
[354131320,1740267036521,-634.26,0.00014849,2]
[354131321,1740267036530,-1709.53,0.00014931,2]
[354131322,1740267036539,-634.26,0.00014931,2]
[354131323,1740267036549,-1709.53,0.00015013,2]
[354131324,1740267036559,-634.26,0.00015013,2]
[354131325,1740267036568,-1709.53,0.00015095,2]
[354131326,1740267036577,-634.26,0.00015095,2]
[354131327,1740267036586,-1709.53,0.00015178,2]
[354131328,1740267036596,-634.26,0.00015178,2]
[354131329,1740267036605,-1500.0,0.00015222,2]
[354131330,1740267036615,-1709.53,0.0001526,2]
[354131331,1740267036625,-634.26,0.0001526,2]
[354131332,1740267036635,-1709.53,0.00015342,2]
[354131333,1740267036646,-634.26,0.00015342,2]
[354131334,1740267036656,-1709.53,0.00015424,2]
[354131335,1740267036665,-634.26,0.00015424,2]
[354131336,1740267036674,-528.10501928,0.00015459,2]
[354131337,1740267036684,-1709.53,0.00015506,2]
[354131338,1740267036694,-634.26,0.00015506,2]
[354131339,1740267036703,-528.10501928,0.00015559,2]
[354131340,1740267036712,-1709.68999999,0.00015589,2]
[354131341,1740267036721,-634.36,0.00015589,2]
[354131342,1740267036731,-528.10501928,0.00015659,2]
[354131343,1740267036740,-154.796407,0.00015753,2]
[354131344,1740267036749,-1114.413034,0.00015753,2]
[354131345,1740267036758,-528.10501928,0.00015759,2]
[354131346,1740267036767,-256.16314,0.00015775,2]
[354131347,1740267036776,-2002.1901053,0.0001578,2]
[354131348,1740267036786,-18098.37234581,0.00015788,2]
[354131349,1740267036799,-1533.3,0.00015788,2]
[354131350,1740267036810,-430.205,0.00015788,2]
[354131351,1740267036821,-1097.08000002,0.00015788,2]
[354131374,1740267038608,-500.0,0.00013698,2]
[354131375,1740267038617,-1114.42972313,0.00015788,2]
[354131382,1740267040951,-7253.64025834,0.00015788,2]
[354131383,1740267040961,-700.0,0.00015808,2]
[354131384,1740267040970,-600.0,0.0001584,2]
[354131385,1740267040979,-528.10501928,0.00015859,2]
[354131386,1740267040988,-528.10501928,0.00015959,2]
[354131387,1740267040998,-600.0,0.00016005,2]
[354131388,1740267041007,-528.10501928,0.00016059,2]
[354131389,1740267041016,-528.10501928,0.00016159,2]
[354131390,1740267041026,-185.0341079,0.0001616,2]
[354131391,1740267041034,-499.0,0.00016164,2]
[354131392,1740267041044,-600.0,0.0001617,2]
[354131393,1740267041053,-528.10501928,0.00016259,2]
[354131394,1740267041063,-1272.79098989,0.000163,2]
[354131395,1740267041072,-602.06919072,0.00016335,2]
[354131396,1740267041082,-364.8354735,0.00016356,2]
[354131397,1740267041092,-528.10501928,0.00016359,2]
[354131398,1740267041102,-3000.0,0.000164,2]
[354131399,1740267041111,-1373.98822255,0.000164,2]
[354131400,1740267041120,-5262.00987114,0.000164,2]
[354131401,1740267041130,-13278.19900895,0.00016419,2]
[354131402,1740267041139,-2287.0,0.00016431,2]
[354131403,1740267041148,-396.0,0.00016431,2]
[354131404,1740267041158,-150.0,0.00016431,2]
[354131405,1740267041242,-528.10501928,0.00016459,2]
[354131406,1740267041263,-568.61568696,0.00016499,2]
[354131407,1740267041273,-500.0,0.00016499,2]
[354131408,1740267041283,-769385.21747118,0.000165,8]
[354131431,1740267043759,-213274.28239302,0.000165,8]
[354131437,1740267659269,-150.0,9.041e-05,2]
[354131438,1740267660871,-96.002225,9.041e-05,2]
[354131477,1740268231964,-173.85,0.00010959,2]
[354131478,1740268231974,-869.29,0.00010959,2]
[354131479,1740268231984,-500.0,0.00013698,2]
[354131480,1740268231993,-500.0,0.00013698,2]
[354131481,1740268232002,-600.0,0.00014164,2]
[354131482,1740268232012,-6265.78879306,0.0001502,2]
[354131483,1740268232023,-286.73075199,0.0001502,2]
[354131484,1740268232062,-400.0,0.0001502,2]
[354131538,1740268240454,-5972.37719929,0.0001502,2]
[354131539,1740268240463,-506.9808185,0.00015456,2]
[354131540,1740268240473,-600.0,0.00015534,2]
[354131541,1740268240482,-506.9808185,0.00015556,2]
[354131542,1740268240491,-506.9808185,0.00015656,2]
[354131543,1740268240499,-506.9808185,0.00015756,2]
[354131544,1740268240509,-246.002225,0.00015775,2]
[354131545,1740268240518,-600.0,0.0001584,2]
[354131546,1740268240527,-506.9808185,0.00015856,2]
[354131547,1740268240536,-349.01424516,0.00015904,2]
[354131548,1740268240546,-500.0,0.00015904,2]
[354131549,1740268240555,-3000.0,0.00015905,2]
[354131550,1740268240565,-506.9808185,0.00015956,2]
[354131551,1740268240574,-227.48077508,0.00016004,2]
[354131552,1740268240583,-500.0,0.00016004,2]
[354131553,1740268240593,-173.059,0.00016005,2]
[354131554,1740268240602,-600.0,0.00016005,2]
[354131555,1740268240612,-506.9808185,0.00016056,2]
[354131556,1740268240621,-500.0,0.00016069,2]
[354131557,1740268240630,-500.0,0.00016152,2]
[354131558,1740268240639,-506.9808185,0.00016156,2]
[354131559,1740268240650,-185.0341079,0.00016169,2]
[354131560,1740268240662,-600.0,0.0001617,2]
[354131561,1740268240672,-500.0,0.00016234,2]
[354131562,1740268240683,-506.9808185,0.00016256,2]
[354131563,1740268240692,-500.0,0.00016316,2]
[354131564,1740268240704,-602.06919072,0.00016335,2]
[354131565,1740268240714,-506.9808185,0.00016356,2]
[354131566,1740268240724,-1272.79098989,0.00016389,2]
[354131567,1740268240735,-500.0,0.00016398,2]
[354131568,1740268240746,-7253.64025834,0.000164,2]
[354131569,1740268240756,-5262.00987114,0.000164,2]
[354131570,1740268240767,-1373.98822255,0.000164,2]
[354131571,1740268240780,-13278.19900895,0.00016407,2]
[354131572,1740268240789,-150.0,0.00016432,2]
[354131573,1740268240799,-538.0,0.00016432,2]
[354131574,1740268240812,-1970.0,0.00016432,2]
[354131575,1740268240822,-2287.0,0.00016432,2]
[354131576,1740268240831,-396.0,0.00016432,2]
[354131577,1740268240840,-150.0,0.00016432,2]
[354131578,1740268240850,-150.0,0.00016432,2]
[354131579,1740268240860,-506.9808185,0.00016456,2]
[354131580,1740268240868,-500.0,0.00016473,2]
[354131581,1740268240877,-499.0,0.00016478,2]
[354131582,1740268240886,-500.0,0.0001648,2]
[354131583,1740268240896,-500.0,0.00016488,2]
[354131584,1740268240905,-568.61568696,0.00016488,2]
[354131585,1740268240914,-500.0,0.00016488,2]
[354131586,1740268240923,-334.99216078,0.00016488,2]
[354131587,1740268240932,-256.14729731,0.00016488,2]
[354131588,1740268240941,-265.94000003,0.00016488,2]
[354131589,1740268240951,-7073.87312414,0.00016489,5]
[354131590,1740268240960,-2814.28979652,0.00016489,5]
[354131591,1740268240970,-742448.82325283,0.00016489,7]
[354131607,1740268242948,-2671.530926,0.00016489,7]
[354131608,1740268242962,-4895.57818558,0.00016489,7]
[354131643,1740268245948,-349.11003682,0.00016489,7]
[354131787,1740268662366,-150.0,9.041e-05,2]
[354131788,1740268663937,-98.384742,9.041e-05,2]
[354131832,1740269432185,-600.0,0.00014164,2]
[354131834,1740269432194,-300.0,0.00014633,2]
[354131836,1740269432211,-500.0,0.00014634,2]
[354131838,1740269432226,-500.0,0.00014634,2]
[354131840,1740269432235,-500.0,0.00014634,2]
[354131842,1740269432245,-500.0,0.00014634,2]
[354131844,1740269432254,-500.0,0.00014634,2]
[354131846,1740269432264,-348.13131954,0.00014634,2]
[354131848,1740269432274,-24293.5225911,0.00014634,2]
[354131850,1740269432284,-500.0,0.00014716,2]
[354131852,1740269432293,-500.0,0.00014716,2]
[354131854,1740269432303,-500.0,0.00014716,2]
[354131856,1740269432312,-91.40692326,0.00014716,2]
[354131858,1740269432324,-408.59307674,0.00014716,2]
[354131860,1740269432333,-466.74192833,0.00014716,2]
[354131862,1740269432345,-33.25807167,0.00014716,2]
[354131864,1740269432355,-500.0,0.00014798,2]
[354131866,1740269432364,-500.0,0.00014798,2]
[354131868,1740269432373,-487.23,0.00014798,2]
[354131869,1740269432383,-176.19,0.00014798,2]
[354131871,1740269432395,-500.0,0.00014798,2]
[354131873,1740269432405,-500.0,0.0001488,2]
[354131874,1740269432415,-500.0,0.0001488,2]
[354131875,1740269432424,-500.0,0.0001488,2]
[354131876,1740269432434,-500.0,0.00014963,2]
[354131877,1740269432444,-500.0,0.00014963,2]
[354131878,1740269432456,-500.0,0.00014963,2]
[354131879,1740269432465,-166.66666668,0.00014982,2]
[354131880,1740269432475,-12924.89674434,0.00014988,2]
[354131881,1740269432484,-500.0,0.00015045,2]
[354131882,1740269432623,-496.8,0.00015045,2]
[354131883,1740269432634,-500.0,0.00015045,2]
[354131884,1740269432644,-250.0,0.00015082,2]
[354131885,1740269432655,-500.0,0.00015127,2]
[354131886,1740269432664,-493.13,0.00015127,2]
[354131887,1740269432674,-500.0,0.00015209,2]
[354131888,1740269432683,-500.0,0.00015291,2]
[354131889,1740269432692,-500.0,0.00015373,2]
[354131890,1740269432701,-500.0,0.00015456,2]
[354131891,1740269432711,-600.0,0.00015534,2]
[354131892,1740269432721,-500.0,0.00015538,2]
[354131893,1740269432730,-500.0,0.0001562,2]
[354131894,1740269432740,-550.85,0.00015702,2]
[354131895,1740269432750,-248.384742,0.00015775,2]
[354131896,1740269432760,-600.0,0.0001584,2]
[354131897,1740269432769,-500.0,0.00015901,2]
[354131898,1740269432778,-500.0,0.00015901,2]
[354131899,1740269432787,-1596.26,0.00015901,2]
[354131900,1740269432797,-500.0,0.00015901,2]
[354131901,1740269432807,-173.059,0.00015902,2]
[354131902,1740269432816,-500.0,0.00015902,2]
[354131903,1740269432825,-227.48077508,0.00015902,2]
[354131904,1740269432834,-500.0,0.00015902,2]
[354131905,1740269432843,-597.02,0.00015902,2]
[354131906,1740269432854,-500.0,0.00015902,2]
[354131907,1740269432864,-500.0,0.00015902,2]
[354131908,1740269432874,-500.0,0.00015902,2]
[354131909,1740269432883,-500.0,0.00015902,2]
[354131910,1740269432893,-500.0,0.00015902,2]
[354131911,1740269432903,-549.45,0.00015902,2]
[354131912,1740269432913,-593.82,0.00015902,2]
[354131913,1740269432922,-311.19698643,0.00015902,2]
[354131914,1740269432932,-560.37,0.00015902,2]
[354131915,1740269432941,-500.0,0.00015902,2]
[354131916,1740269432951,-500.0,0.00015902,2]
[354131917,1740269432960,-541.38,0.00015902,2]
[354131918,1740269432970,-500.0,0.00015902,2]
[354131919,1740269432979,-500.0,0.00015902,2]
[354131920,1740269432988,-503.8,0.00015902,2]
[354131921,1740269432998,-500.0,0.00015902,2]
[354131922,1740269433008,-500.0,0.00015902,2]
[354131923,1740269433018,-500.0,0.00015902,2]
[354131924,1740269433028,-500.0,0.00015902,2]
[354131925,1740269433038,-500.0,0.00015902,2]
[354131926,1740269433047,-570.4,0.00015902,2]
[354131927,1740269433057,-500.0,0.00015902,2]
[354131928,1740269433068,-500.0,0.00015902,2]
[354131929,1740269433079,-500.0,0.00015902,2]
[354131930,1740269433089,-224.09737267,0.00015902,2]
[354131931,1740269433099,-500.0,0.00015902,2]
[354131932,1740269433109,-500.0,0.00015902,2]
[354131933,1740269433119,-500.0,0.00015902,2]
[354131934,1740269433129,-500.0,0.00015902,2]
[354131935,1740269433138,-259.40972313,0.00015902,2]
[354131936,1740269433148,-500.0,0.00015902,2]
[354131937,1740269433158,-500.0,0.00015902,2]
[354131938,1740269433169,-500.0,0.00015902,2]
[354131939,1740269433179,-500.0,0.00015902,2]
[354131940,1740269433190,-500.0,0.00015902,2]
[354131941,1740269433200,-500.0,0.00015902,2]
[354131942,1740269433210,-500.0,0.00015902,2]
[354131943,1740269433220,-500.0,0.00015902,2]
[354131944,1740269433230,-500.0,0.00015902,2]
[354131945,1740269433240,-500.0,0.00015902,2]
[354131946,1740269433251,-500.0,0.00015902,2]
[354131947,1740269433261,-500.0,0.00015902,2]
[354131948,1740269433271,-500.0,0.00015902,2]
[354131949,1740269433281,-502.95407672,0.00015902,2]
[354131950,1740269433291,-500.0,0.00015902,2]
[354131951,1740269433301,-500.0,0.00015902,2]
[354131952,1740269433310,-500.0,0.00015902,2]
[354131953,1740269433319,-570.54908009,0.00015903,2]
[354131954,1740269433329,-534.41,0.00015903,2]
[354131955,1740269433339,-500.0,0.00015903,2]
[354131956,1740269433349,-500.0,0.00015903,2]
[354131957,1740269433360,-500.0,0.00015904,2]
[354131958,1740269433370,-1000.0,0.00015904,2]
[354131959,1740269433380,-500.0,0.00015904,2]
[354131960,1740269433390,-500.0,0.00015904,2]
[354131961,1740269433400,-500.0,0.00015904,2]
[354131962,1740269433410,-500.0,0.00015904,2]
[354131963,1740269433420,-500.0,0.00015904,2]
[354131964,1740269433431,-500.0,0.00015904,2]
[354131965,1740269433442,-500.0,0.00015904,2]
[354131966,1740269433456,-500.0,0.00015904,2]
[354131967,1740269433466,-500.0,0.00015983,2]
[354131968,1740269433475,-645.47,0.00015983,2]
[354131969,1740269433486,-1596.26,0.00015983,2]
[354131970,1740269433498,-500.0,0.00015983,2]
[354131971,1740269433509,-270.1,0.00015984,2]
[354131972,1740269433518,-349.01424516,0.00015984,2]
[354131973,1740269433530,-467.39,0.00015984,2]
[354131974,1740269433542,-176.39,0.00015984,2]
[354131975,1740269433551,-547.84,0.00015984,2]
[354131976,1740269433560,-341.65,0.00015984,2]
[354131977,1740269433570,-500.0,0.00015984,2]
[354131978,1740269433580,-500.0,0.00015984,2]
[354131979,1740269433590,-223.58,0.00015984,2]
[354131980,1740269433600,-603.23,0.00015986,2]
[354131981,1740269433610,-600.0,0.00016005,2]
[354131982,1740269433619,-500.0,0.00016066,2]
[354131983,1740269433629,-1596.26,0.00016066,2]
[354131984,1740269433639,-500.0,0.00016066,2]
[354131985,1740269433648,-233.97,0.00016067,2]
[354131986,1740269433659,-500.0,0.00016148,2]
[354131987,1740269433668,-1429.3648358,0.00016148,2]
[354132030,1740269438035,-166.8951642,0.00016148,2]
[354132032,1740269438046,-500.0,0.00016148,2]
[354132034,1740269438056,-500.0,0.00016157,2]
[354132036,1740269438065,-185.0341079,0.00016169,2]
[354132038,1740269438075,-600.0,0.0001617,2]
[354132040,1740269438084,-499.0,0.00016183,2]
[354132042,1740269438093,-438.37,0.0001623,2]
[354132044,1740269438103,-1596.26,0.0001623,2]
[354132046,1740269438112,-138.16226065,0.0001623,2]
[354132048,1740269438123,-361.83773935,0.0001623,2]
[354132050,1740269438133,-11306.10866654,0.00016299,2]
[354132293,1740269440400,-1972.09034241,0.00016299,2]
[354132295,1740269440410,-1596.26,0.00016312,2]
[354132297,1740269440419,-500.0,0.00016312,2]
[354132299,1740269440429,-602.06919072,0.00016335,2]
[354132301,1740269440438,-364.8354735,0.00016356,2]
[354132303,1740269440450,-1373.98822255,0.00016389,2]
[354132305,1740269440460,-3000.0,0.00016389,2]
[354132307,1740269440469,-1272.79098989,0.00016389,2]
[354132309,1740269440479,-1596.26,0.00016394,2]
[354132311,1740269440488,-500.0,0.00016394,2]
[354132312,1740269440498,-577.70102684,0.00016399,2]
[354132315,1740269440507,-500.0,0.00016399,2]
[354132317,1740269440517,-256.14729731,0.00016399,2]
[354132318,1740269440526,-642.12470954,0.00016399,2]
[354132321,1740269440536,-5262.00987114,0.000164,2]
[354132323,1740269440546,-150.0,0.00016432,2]
[354132324,1740269440555,-150.0,0.00016432,2]
[354132327,1740269440565,-1970.0,0.00016432,2]
[354132328,1740269440574,-538.0,0.00016432,2]
[354132331,1740269440583,-2287.0,0.00016432,2]
[354132333,1740269440593,-396.0,0.00016432,2]
[354132335,1740269440602,-447.18687057,0.00016434,2]
[354132337,1740269440612,-1596.26,0.00016476,2]
[354132339,1740269440621,-500.0,0.00016476,2]
[354132341,1740269440631,-320.58470609,0.00016488,2]
[354132343,1740269440640,-7073.87312414,0.00016489,5]
[354132344,1740269440650,-2814.28979652,0.00016489,5]
[354132346,1740269440659,-774315.66379487,0.00016489,7]
[354132583,1740269443079,-500.0,0.00016489,7]
[354132586,1740269443092,-7822.76379182,0.00016489,7]
[354132587,1740269443134,-2449.24720721,0.00016489,7]
[354132591,1740269446122,-272.19120742,0.00016489,7]
[354132592,1740269446133,-40747.4481111,0.00016489,7]
[354132597,1740269446176,-14406.48815305,0.00016489,7]
[354132600,1740270158306,-150.0,9.041e-05,2]
[354132601,1740270160709,-87.494766,9.041e-05,2]
[354132619,1740270632286,-262.56,0.00010959,2]
[354132620,1740270632296,-487.38874887,0.000135,2]
[354132621,1740270632341,-4933.80639724,0.000135,2]
[354132622,1740270632351,-500.0,0.00014164,2]
[354132623,1740270632360,-5125.21565668,0.00015093,2]
[354132624,1740270632372,-311.51684575,0.00015093,2]
[354132657,1740270638236,-111.58093576,0.00015093,2]
[354132682,1740271303672,-150.0,9.041e-05,2]
[354132683,1740271308351,-89.219098,9.041e-05,2]
[354132706,1740271832612,-166.0,0.00013709,2]
[354132707,1740271832621,-362.2207672,0.00013811,2]
[354132708,1740271832631,-500.0,0.00014164,2]
[354132709,1740271832640,-6745.975918,0.00014506,2]
[354132710,1740271832650,-1407.14489826,0.00014601,5]
[354132711,1740271832659,-12924.89674434,0.00014601,2]
[354132712,1740271832669,-3536.93656207,0.00014627,5]
[354132713,1740271832681,-500.0,0.00014678,2]
[354132714,1740271832691,-500.0,0.00014678,2]
[354132715,1740271832700,-500.0,0.00014678,2]
[354132716,1740271832711,-257.95,0.0001476,2]
[354132717,1740271832720,-500.0,0.0001476,2]
[354132718,1740271832729,-436.33184053,0.0001476,2]
[354132719,1740271832739,-500.0,0.00014807,2]
[354132720,1740271832749,-1222.45,0.00014807,2]
[354132721,1740271832759,-500.0,0.00014807,2]
[354132722,1740271832768,-500.0,0.00014807,2]
[354132723,1740271832778,-500.0,0.00014807,2]
[354132724,1740271832787,-500.0,0.00014842,2]
[354132725,1740271832796,-629.8110177,0.00014885,2]
[354132726,1740271832806,-501.01357908,0.00014885,2]
[354132727,1740271832815,-1222.45,0.0001489,2]
[354132728,1740271832825,-500.0,0.0001489,2]
[354132729,1740271832835,-500.0,0.0001489,2]
[354132731,1740271832844,-500.0,0.0001489,2]
[354132733,1740271832854,-13278.19900895,0.00014965,2]
[354132736,1740271832865,-1222.45,0.00014972,2]
[354132737,1740271832874,-500.0,0.00014972,2]
[354132739,1740271832883,-500.0,0.00014972,2]
[354132741,1740271832892,-170.19,0.00014972,2]
[354132743,1740271832902,-181.2,0.00014986,2]
[354132745,1740271832912,-1222.45,0.00015054,2]
[354132747,1740271832922,-393.62,0.00015054,2]
[354132749,1740271832931,-500.0,0.00015054,2]
[354132750,1740271832940,-500.0,0.0001509,2]
[354132751,1740271832950,-349.0,0.00015093,2]
[354132752,1740271832959,-349.0,0.00015093,2]
[354132753,1740271832969,-349.0,0.00015093,2]
[354132754,1740271832978,-349.0,0.00015093,2]
[354132755,1740271832988,-349.0,0.00015093,2]
[354132756,1740271832997,-349.0,0.00015093,2]
[354132757,1740271833007,-349.0,0.00015093,2]
[354132758,1740271833016,-489.01,0.00015093,2]
[354132759,1740271833026,-1222.45,0.00015136,2]
[354132760,1740271833036,-500.0,0.00015136,2]
[354132761,1740271833045,-1222.45,0.00015218,2]
[354132762,1740271833059,-529.10911158,0.00015218,2]
[354132763,1740271833069,-173.059,0.00015251,2]
[354132764,1740271833079,-1222.45,0.00015301,2]
[354132765,1740271833089,-16.69580378,0.00015383,2]
[354132766,1740271833101,-1205.75419622,0.00015383,2]
[354132767,1740271833111,-506.9808185,0.00015458,2]
[354132768,1740271833120,-1222.45,0.00015465,2]
[354132769,1740271833130,-500.0,0.00015534,2]
[354132770,1740271833141,-1222.45,0.00015547,2]
[354132771,1740271833150,-506.9808185,0.00015558,2]
[354132772,1740271833160,-1222.45,0.00015629,2]
[354132773,1740271833169,-420.79036818,0.00015658,2]
[354132774,1740271833182,-86.19045032,0.00015658,2]
[354132775,1740271833191,-1222.45,0.00015712,2]
[354132776,1740271833201,-506.9808185,0.00015758,2]
[354132777,1740271833211,-239.219098,0.00015775,2]
[354132778,1740271833220,-1222.45,0.00015794,2]
[354132779,1740271833230,-506.9808185,0.00015858,2]
[354132780,1740271833239,-1222.45,0.00015876,2]
[354132781,1740271833249,-506.9808185,0.00015958,2]
[354132782,1740271833258,-1222.45,0.00015958,2]
[354132783,1740271833267,-1222.45,0.0001604,2]
[354132784,1740271833277,-506.9808185,0.00016058,2]
[354132785,1740271833287,-1222.45,0.00016123,2]
[354132786,1740271833296,-506.9808185,0.00016158,2]
[354132787,1740271833306,-185.034108,0.00016158,2]